bitfinex-derivatives/quotes_BNBF0:USTF0_20250315
["timestamp","ask_amount","ask_price","bid_price","bid_amount"]
[1742035316091,0.286399,597.73,596.41,2.38933978]
[1742035316273,0.286399,597.72,596.41,3.91433978]
[1742035316473,0.286399,597.73,596.41,5.80133978]
[1742035316676,0.286399,597.72,596.41,5.80133978]
[1742035316877,0.286399,597.73,596.41,5.80133978]
[1742035317075,0.286399,597.73,596.41,7.97033978]
[1742035317277,0.286399,597.73,596.41,9.08333978]
[1742035323079,0.28638103,597.72,596.41,9.08333978]
[1742035323277,0.28638103,597.73,596.41,9.08333978]
[1742035323478,0.28638103,597.72,596.41,9.08333978]
[1742035323881,0.28638103,597.71,596.42,0.30786005]
[1742035324182,0.28638103,597.7,596.43,0.33532853]
[1742035324385,0.28638103,597.69,596.44,0.30786005]
[1742035324579,0.28638103,597.68,596.45,0.33531729]
[1742035324780,0.28638012,597.67,596.45,0.33531729]
[1742035324978,0.28638012,597.73,596.45,0.33531729]
[1742035325184,0.28638012,597.72,596.45,0.33531729]
[1742035325377,0.28638012,597.71,596.45,0.33531729]
[1742035325584,0.28638012,597.7,596.46,0.30785978]
[1742035325781,0.28638012,597.69,596.47,0.33530605]
[1742035325978,0.28638012,597.68,596.47,0.33530605]
[1742035326177,2.84280931,597.67,596.47,0.33530605]
[1742035326382,0.28638012,597.66,596.47,0.33530605]
[1742035326678,0.28637598,597.65,596.47,0.33530605]
[1742035326882,0.28637598,597.66,596.47,0.33530605]
[1742035327085,0.28637598,597.65,596.47,0.33530605]
[1742035327284,0.28637598,597.66,596.47,0.33530605]
[1742035327584,0.28637598,597.65,596.47,0.33530605]
[1742035327883,0.28637598,597.66,596.47,0.33530605]
[1742035328084,0.28637598,597.65,596.47,0.33530605]
[1742035328280,0.28637598,597.68,596.47,0.33530605]
[1742035329783,0.28637598,597.73,596.47,0.33530605]
[1742035330085,0.28637598,597.72,596.47,0.33530605]
[1742035330286,0.28637598,597.73,596.47,0.33530605]
[1742035330587,0.28637445,597.72,596.47,0.33530605]
[1742035330782,0.28637445,597.73,596.48,1.047]
[1742035330984,0.28637445,597.72,596.49,0.3352948]
[1742035331286,0.28637445,597.71,596.49,0.3352948]
[1742035331486,0.28637445,597.73,596.49,0.3352948]
[1742035333802,0.28637445,597.73,596.5,1.165]
[1742035333990,0.28637445,597.73,596.5,1.974]
[1742035334184,0.28639745,597.72,596.51,0.33528356]
[1742035334385,0.33459363,597.74,596.51,0.33528356]
[1742035334386,0.28639745,597.73,596.51,0.33528356]
[1742035334586,0.28639745,597.72,596.51,0.33528356]
[1742035334788,0.28639745,597.73,596.51,0.33528356]
[1742035334988,0.28639745,597.72,596.51,0.33528356]
[1742035335185,0.28639745,597.73,596.51,0.33528356]
[1742035335386,0.28639745,597.72,596.51,0.33528356]
[1742035335589,0.28639745,597.73,596.51,0.33528356]
[1742035335788,0.28639745,597.72,596.51,0.33528356]
[1742035335988,0.28638647,597.71,596.51,0.33528356]
[1742035336288,0.28638647,597.7,596.51,0.33528356]
[1742035336489,0.28638647,597.73,596.51,0.33528356]
[1742035339992,0.28638647,597.73,596.52,1.072]
[1742035340289,0.28638647,597.73,596.52,1.40727794]
[1742035343396,0.33459363,597.74,596.52,1.40727794]
[1742035343397,0.33459363,597.74,596.52,2.38327794]
[1742035343593,0.28641395,597.72,596.52,2.38327794]
[1742035343795,0.28641395,597.71,596.52,2.38327794]
[1742035344089,0.28641395,597.73,596.52,2.38327794]
[1742035346790,0.28641395,597.73,596.52,3.40027794]
[1742035346995,0.33460483,597.72,596.52,3.40027794]
[1742035347192,0.28641395,597.71,596.52,3.40027794]
[1742035347393,0.62100674,597.7,596.52,3.40027794]
[1742035347594,0.28639072,597.69,596.52,3.40027794]
[1742035348197,0.62101234,597.69,596.52,4.38527794]
[1742035348396,0.28639072,597.68,596.52,4.38527794]
[1742035349197,0.28637625,597.67,596.52,4.38527794]
[1742035349396,0.28637625,597.66,596.52,4.38527794]
[1742035349598,0.28637625,597.68,596.52,4.38527794]
[1742035349898,0.28637625,597.67,596.52,6.40427794]
[1742035350098,0.28637625,597.68,596.52,6.40427794]
[1742035350303,0.28637625,597.67,596.52,6.40427794]
[1742035350498,0.28637625,597.68,596.52,6.40427794]
[1742035351400,0.28637625,597.67,596.52,6.40427794]
[1742035351599,0.33462162,597.69,596.52,6.40427794]
[1742035351796,0.28637807,597.68,596.52,6.40427794]
[1742035352607,0.28637389,597.67,596.52,6.40427794]
[1742035352906,0.28637389,597.66,596.52,6.40427794]
[1742035353208,0.28637389,597.65,596.52,6.40427794]
[1742035353400,0.28637389,597.68,596.52,6.40427794]
[1742035353607,0.28637389,597.67,596.52,6.40427794]
[1742035353800,0.28637389,597.66,596.52,6.40427794]
[1742035354001,0.28637389,597.65,596.52,6.40427794]
[1742035354204,0.28637389,597.68,596.52,6.40427794]
[1742035354507,0.28637389,597.67,596.52,6.40427794]
[1742035354707,0.33462162,597.69,596.52,6.40427794]
[1742035354905,0.28639363,597.68,596.52,6.40427794]
[1742035363314,0.28680057,597.67,596.52,6.40427794]
[1742035363513,0.28680057,597.68,596.52,6.40427794]
[1742035363716,0.28680057,597.67,596.52,6.40427794]
[1742035363916,0.28680057,597.68,596.52,6.40427794]
[1742035364119,0.28680057,597.67,596.52,6.40427794]
[1742035364416,0.28680057,597.66,596.52,6.40427794]
[1742035364617,0.28680057,597.68,596.52,6.40427794]
[1742035364817,0.28680057,597.67,596.52,6.40427794]
[1742035365019,0.28680057,597.68,596.52,6.40427794]
[1742035365220,0.28680057,597.67,596.52,6.40427794]
[1742035365422,0.28680057,597.68,596.52,6.40427794]
[1742035365617,0.28680057,597.67,596.52,6.40427794]
[1742035365818,0.33462162,597.69,596.52,6.40427794]
[1742035366021,0.28680038,597.68,596.52,6.40427794]
[1742035370824,0.28680038,597.68,596.52,7.77227794]
[1742035371028,0.28679669,597.67,596.52,7.77227794]
[1742035371325,0.28679669,597.66,596.52,7.77227794]
[1742035371516,0.28679669,597.68,596.52,7.77227794]
[1742035371719,0.28680259,597.67,596.52,7.77227794]
[1742035371921,0.28680259,597.66,596.52,7.77227794]
[1742035372123,0.28680259,597.65,596.52,7.77227794]
[1742035372317,0.28680259,597.64,596.52,7.77227794]
[1742035372522,0.28680259,597.68,596.52,7.77227794]
[1742035372822,0.28680259,597.67,596.52,7.77227794]
[1742035373023,0.28680259,597.66,596.52,7.77227794]
[1742035373224,0.28680259,597.65,596.52,7.77227794]
[1742035373421,0.28680259,597.64,596.52,7.77227794]
[1742035373646,0.28680469,597.63,596.52,7.77227794]
[1742035373827,0.28680469,597.62,596.52,7.77227794]
[1742035374029,0.28680469,597.68,596.52,7.77227794]
[1742035374221,0.33462162,597.69,596.52,7.77227794]
[1742035374222,0.28680469,597.67,596.52,7.77227794]
[1742035374425,0.28680469,597.68,596.52,7.77227794]
[1742035374625,0.28680469,597.67,596.52,7.77227794]
[1742035374821,0.28680469,597.66,596.52,7.77227794]
[1742035375027,0.28680469,597.65,596.52,7.77227794]
[1742035375221,0.28680469,597.68,596.52,7.77227794]
[1742035375626,0.28677733,597.67,596.52,7.77227794]
[1742035375823,0.28677733,597.68,596.52,7.77227794]
[1742035376025,0.28677733,597.67,596.52,7.77227794]
[1742035376226,0.28677733,597.66,596.52,7.77227794]
[1742035376423,0.28677733,597.68,596.52,7.77227794]
[1742035376621,0.28677733,597.67,596.52,7.77227794]
[1742035376826,0.28677733,597.68,596.52,7.77227794]
[1742035377024,0.28677733,597.66,596.52,7.77227794]
[1742035377224,0.28677733,597.65,596.52,8.72127794]
[1742035377427,0.33462162,597.69,596.52,8.72127794]
[1742035377428,0.28677733,597.68,596.52,8.72127794]
[1742035379231,0.33462162,597.69,596.52,8.72127794]
[1742035379425,0.28680135,597.68,596.52,8.72127794]
[1742035381831,0.28680135,597.67,596.52,8.72127794]
[1742035382029,0.28680135,597.68,596.52,8.72127794]
[1742035382634,0.28680647,597.67,596.52,8.72127794]
[1742035382835,0.28680647,597.68,596.52,8.72127794]
[1742035383036,0.28680647,597.67,596.52,8.72127794]
[1742035383230,0.28680647,597.68,596.52,8.72127794]
[1742035385339,0.28680647,597.67,596.52,8.72127794]
[1742035385736,0.28680647,597.66,596.52,8.72127794]
[1742035385938,0.28680647,597.65,596.52,8.72127794]
[1742035386139,0.28680647,597.64,596.52,8.72127794]
[1742035386339,0.28680647,597.68,596.52,8.72127794]
[1742035386639,0.28680647,597.67,596.52,8.72127794]
[1742035386834,0.28680647,597.66,596.52,8.72127794]
[1742035387039,0.28680647,597.68,596.52,8.72127794]
[1742035395646,0.33462162,597.69,596.52,8.72127794]
[1742035395846,0.28684664,597.68,596.52,8.72127794]
[1742035397645,0.33462162,597.69,596.52,8.72127794]
[1742035397847,0.28684892,597.68,596.52,8.72127794]
[1742035399249,0.33463282,597.67,596.52,8.72127794]
[1742035399453,0.28684892,597.66,596.52,8.72127794]
[1742035399645,0.33464402,597.65,596.52,8.72127794]
[1742035399849,0.28684892,597.64,596.52,8.72127794]
[1742035400050,0.33465522,597.63,596.52,8.72127794]
[1742035400254,0.28684892,597.62,596.52,8.72127794]
[1742035400851,0.62150974,597.62,596.52,8.72127794]
[1742035401053,0.28684892,597.61,596.52,8.72127794]
[1742035401553,0.28690062,597.6,596.52,8.72127794]
[1742035401749,0.28690062,597.61,596.52,8.72127794]
[1742035401946,0.33466082,597.62,596.52,8.72127794]
[1742035401947,0.28690062,597.6,596.52,8.72127794]
[1742035402151,0.28690062,597.59,596.52,8.72127794]
[1742035402350,0.28690062,597.61,596.52,8.72127794]
[1742035402547,0.28690062,597.6,596.52,8.72127794]
[1742035402853,0.28690062,597.59,596.52,8.72127794]
[1742035403153,0.28690062,597.61,596.52,8.72127794]
[1742035403354,0.28690062,597.6,596.52,8.72127794]
[1742035403653,0.28690062,597.59,596.52,8.72127794]
[1742035403853,0.28690062,597.61,596.52,8.72127794]
[1742035404053,0.28690062,597.6,596.52,8.72127794]
[1742035404250,0.33466082,597.62,596.52,8.72127794]
[1742035404251,0.28690062,597.61,596.52,8.72127794]
[1742035405148,0.28688257,597.6,596.52,8.72127794]
[1742035405356,0.28688257,597.59,596.52,8.72127794]
[1742035405552,0.28688257,597.61,596.52,8.72127794]
[1742035405754,0.28688257,597.6,596.52,8.72127794]
[1742035405950,0.28688257,597.61,596.52,8.72127794]
[1742035406152,0.28688257,597.6,596.52,8.72127794]
[1742035406358,0.28688257,597.59,596.52,8.72127794]
[1742035406556,0.28688257,597.58,596.52,8.72127794]
[1742035406855,0.33466082,597.62,596.52,8.72127794]
[1742035406856,0.28688257,597.57,596.52,8.72127794]
[1742035407055,0.28687078,597.56,596.52,8.72127794]
[1742035407255,0.28687078,597.55,596.52,8.72127794]
[1742035407456,0.28687078,597.61,596.52,8.72127794]
[1742035407651,0.28687078,597.6,596.52,8.72127794]
[1742035407853,0.28687078,597.61,596.52,8.72127794]
[1742035408053,0.28687078,597.6,596.52,8.72127794]
[1742035408354,0.28687078,597.59,596.52,8.72127794]
[1742035408554,0.28687078,597.58,596.52,8.72127794]
[1742035408749,0.28687078,597.57,596.52,8.72127794]
[1742035408951,0.28687078,597.56,596.52,8.72127794]
[1742035409156,0.28687078,597.61,596.52,8.72127794]
[1742035412757,0.28686474,597.6,596.52,8.72127794]
[1742035412954,0.28686474,597.59,596.52,8.72127794]
[1742035413160,0.28686474,597.58,596.52,8.72127794]
[1742035413378,0.28686474,597.61,596.52,8.72127794]
[1742035413564,0.28686474,597.6,596.52,8.72127794]
[1742035413759,0.28686474,597.61,596.52,8.72127794]
[1742035413959,0.28686474,597.59,596.52,8.72127794]
[1742035414161,0.28686474,597.58,596.52,8.72127794]
[1742035414362,0.28686474,597.61,596.52,8.72127794]
[1742035414555,0.33466082,597.62,596.52,8.72127794]
[1742035414760,0.28686455,597.61,596.52,8.72127794]
[1742035416359,0.28686495,597.6,596.52,8.72127794]
[1742035416662,0.28686495,597.59,596.52,8.72127794]
[1742035416862,0.28686495,597.61,596.52,8.72127794]
[1742035417057,0.28686495,597.6,596.52,8.72127794]
[1742035417262,0.28686495,597.61,596.52,8.72127794]
[1742035417463,0.33466082,597.62,596.52,8.72127794]
[1742035417464,0.28686495,597.6,596.52,8.72127794]
[1742035417665,0.28686495,597.59,596.52,8.72127794]
[1742035417862,0.28686495,597.58,596.52,8.72127794]
[1742035418165,0.28685797,597.57,596.52,8.72127794]
[1742035418360,0.28685797,597.61,596.52,8.72127794]
[1742035418564,0.28685797,597.6,596.52,8.72127794]
[1742035418767,0.28685797,597.61,596.52,8.72127794]
[1742035418961,0.33466082,597.62,596.52,8.72127794]
[1742035418962,0.28685797,597.6,596.52,8.72127794]
[1742035419164,0.28685797,597.61,596.52,8.72127794]
[1742035419362,0.28685797,597.6,596.52,8.72127794]
[1742035419667,0.28685797,597.59,596.52,8.72127794]
[1742035419865,0.28685797,597.61,596.52,8.72127794]
[1742035420066,0.33466082,597.62,596.52,8.72127794]
[1742035420269,0.28685436,597.61,596.52,8.72127794]
[1742035423867,0.28686886,597.6,596.52,8.72127794]
[1742035424069,0.28686886,597.59,596.52,8.72127794]
[1742035424275,0.28686886,597.61,596.52,8.72127794]
[1742035424576,0.28686886,597.6,596.52,8.72127794]
[1742035424871,0.28686886,597.59,596.52,8.72127794]
[1742035425075,0.28686886,597.58,596.52,8.72127794]
[1742035425278,0.28686886,597.57,596.52,8.72127794]
[1742035425472,0.33466082,597.62,596.52,8.72127794]
[1742035425676,0.2868686,597.61,596.52,8.72127794]
[1742035427572,0.33466082,597.62,596.52,8.72127794]
[1742035427777,0.2868689,597.61,596.52,8.72127794]
[1742035429577,0.28686858,597.6,596.52,8.72127794]
[1742035429771,0.28686858,597.61,596.52,8.72127794]
[1742035429974,0.28686858,597.6,596.52,8.72127794]
[1742035430276,0.28686858,597.59,596.52,8.72127794]
[1742035430471,0.28686858,597.58,596.52,8.72127794]
[1742035430675,0.28686858,597.61,596.52,8.72127794]
[1742035430873,0.28686858,597.6,596.52,8.72127794]
[1742035431270,0.33466082,597.62,596.52,8.72127794]
[1742035431476,0.28687028,597.61,596.52,8.72127794]
[1742035432373,0.28687028,597.6,596.52,8.72127794]
[1742035432578,0.28687028,597.59,596.52,8.72127794]
[1742035432779,0.28687028,597.58,596.52,8.72127794]
[1742035432981,0.28687028,597.57,596.52,8.72127794]
[1742035433178,0.28687028,597.56,596.52,8.72127794]
[1742035433380,0.28687028,597.61,596.52,8.72127794]
[1742035433580,0.28687028,597.6,596.52,8.72127794]
[1742035433786,0.33466082,597.62,596.52,8.72127794]
[1742035433981,0.28685951,597.61,596.52,8.72127794]
[1742035435083,0.33466082,597.62,596.52,8.72127794]
[1742035435383,0.28686645,597.61,596.52,8.72127794]
[1742035440690,0.28686633,597.6,596.52,8.72127794]
[1742035440884,0.33466082,597.62,596.52,8.72127794]
[1742035441082,0.33466082,597.62,596.53,0.33527232]
[1742035441283,0.28677939,597.61,596.53,0.33527232]
[1742035442483,0.33466082,597.62,596.53,0.33527232]
[1742035442684,0.28679901,597.61,596.53,0.33527232]
[1742035443786,0.28679901,597.61,596.53,1.36327232]
[1742035443987,0.28679901,597.61,596.53,2.33127232]
[1742035444195,0.28678279,597.6,596.53,6.26327232]
[1742035444509,0.28678279,597.59,596.53,7.11627232]
[1742035444689,0.28678279,597.61,596.53,7.11627232]
[1742035444885,0.28678279,597.58,596.53,7.11627232]
[1742035445087,0.28678279,597.57,596.53,8.09027232]
[1742035445288,0.28678279,597.61,596.53,8.09027232]
[1742035445590,0.28678279,597.6,596.53,9.07927232]
[1742035445890,0.28678279,597.59,596.53,9.07927232]
[1742035446090,0.28678279,597.61,596.53,9.07927232]
[1742035446390,0.28678279,597.6,596.53,9.07927232]
[1742035446587,0.28678279,597.61,596.53,9.07927232]
[1742035446790,0.28678279,597.6,596.53,9.07927232]
[1742035447090,0.28678279,597.59,596.53,9.07927232]
[1742035447292,0.28678279,597.61,596.53,9.07927232]
[1742035447590,0.28678279,597.6,596.53,9.07927232]
[1742035447885,0.28678279,597.59,596.53,9.07927232]
[1742035448091,0.28678279,597.61,596.53,9.07927232]
[1742035448290,0.28678279,597.6,596.53,9.07927232]
[1742035448486,0.28678279,597.61,596.53,9.07927232]
[1742035448692,0.28678279,597.6,596.53,9.07927232]
[1742035448891,0.28678279,597.61,596.53,9.07927232]
[1742035449091,0.28678279,597.6,596.53,9.07927232]
[1742035449292,0.28678279,597.61,596.53,9.07927232]
[1742035449488,0.28678279,597.6,596.53,9.07927232]
[1742035449792,0.28678279,597.59,596.53,9.07927232]
[1742035449991,0.28678279,597.61,596.53,9.07927232]
[1742035456991,0.28680313,597.6,596.53,9.07927232]
[1742035457200,0.28680313,597.59,596.53,9.07927232]
[1742035457400,0.28680313,597.61,596.53,9.07927232]
[1742035457626,0.28680313,597.6,596.53,9.07927232]
[1742035457797,0.28680313,597.61,596.53,9.07927232]
[1742035460803,0.33466082,597.62,596.53,9.07927232]
[1742035461002,0.28680311,597.61,596.53,9.07927232]
[1742035464302,0.33466082,597.62,596.53,9.07927232]
[1742035464502,0.28679165,597.61,596.53,9.07927232]
[1742035468304,0.28679791,597.6,596.53,9.07927232]
[1742035468604,0.28679791,597.59,596.53,9.07927232]
[1742035468804,0.28679791,597.61,596.53,9.07927232]
[1742035469004,0.28679791,597.6,596.53,9.07927232]
[1742035469204,0.28679791,597.61,596.53,9.07927232]
[1742035469409,0.28679791,597.6,596.53,9.07927232]
[1742035469601,0.28679791,597.59,596.53,9.07927232]
[1742035469802,0.28679791,597.58,596.53,9.07927232]
[1742035470002,0.33466082,597.62,596.53,9.07927232]
[1742035470304,0.28680232,597.61,596.53,9.07927232]
[1742035475607,0.33466082,597.62,596.53,9.07927232]
[1742035475799,0.28682824,597.61,596.53,9.07927232]
[1742035479203,0.33466082,597.62,596.53,9.07927232]
[1742035479204,0.2868085,597.6,596.53,9.07927232]
[1742035479402,0.2868085,597.61,596.53,9.07927232]
[1742035479605,0.2868085,597.59,596.53,9.07927232]
[1742035479811,0.2868085,597.58,596.53,9.07927232]
[1742035480004,0.2868085,597.61,596.53,9.07927232]
[1742035480207,0.2868085,597.57,596.53,9.07927232]
[1742035480408,0.2868085,597.56,596.53,9.07927232]
[1742035480711,0.2868085,597.55,596.53,9.07927232]
[1742035481004,0.2868085,597.54,596.53,9.07927232]
[1742035481411,0.2868085,597.53,596.53,9.07927232]
[1742035481711,0.33466082,597.62,596.53,9.07927232]
[1742035482108,0.28681773,597.61,596.53,9.07927232]
[1742035484711,0.33466082,597.62,596.53,9.07927232]
[1742035484912,0.28675762,597.61,596.53,9.07927232]
[1742035491520,0.28672515,597.6,596.53,9.07927232]
[1742035491820,0.28672515,597.59,596.53,9.07927232]
[1742035492122,0.28672515,597.58,596.53,9.07927232]
[1742035492419,0.28672515,597.57,596.53,9.07927232]
[1742035492619,0.28672515,597.56,596.53,9.07927232]
[1742035492814,0.28672515,597.61,596.53,9.07927232]
[1742035493019,0.28672515,597.6,596.53,9.07927232]
[1742035493339,0.28672515,597.59,596.53,9.07927232]
[1742035493523,0.28672515,597.61,596.53,9.07927232]
[1742035493721,0.28672515,597.6,596.53,9.07927232]
[1742035493921,0.28672515,597.61,596.53,9.07927232]
[1742035494118,0.28672515,597.59,596.53,9.07927232]
[1742035494318,0.28672515,597.58,596.53,9.07927232]
[1742035494619,0.28672515,597.57,596.53,9.07927232]
[1742035494822,0.2866956,597.56,596.53,9.07927232]
[1742035495020,0.2866956,597.55,596.53,9.07927232]
[1742035495218,0.2866956,597.61,596.53,9.07927232]
[1742035499917,0.62136202,597.61,596.53,9.07927232]
[1742035500122,0.2866956,597.6,596.53,9.07927232]
[1742035501630,0.33467762,597.59,596.53,9.07927232]
[1742035501822,0.2866956,597.58,596.53,9.07927232]
[1742035502020,0.33468882,597.57,596.53,9.07927232]
[1742035502222,0.2866956,597.56,596.53,9.07927232]
[1742035502426,0.62139002,597.56,596.53,9.07927232]
[1742035502627,0.2866956,597.55,596.53,9.07927232]
[1742035503130,0.33470562,597.54,596.53,8.744]
[1742035503327,0.2866956,597.53,596.53,8.744]
[1742035503521,0.33471682,597.52,596.53,8.744]
[1742035503729,0.2866956,597.51,596.53,8.744]
[1742035503929,0.62141803,597.51,596.53,8.744]
[1742035504227,0.2866956,597.5,596.53,8.744]
[1742035504929,0.28652583,597.49,596.53,8.744]
[1742035505128,0.28652583,597.48,596.53,8.744]
[1742035505428,0.28652583,597.47,596.53,8.744]
[1742035505631,0.28652583,597.5,596.53,8.744]
[1742035505826,0.28652583,597.49,596.53,8.744]
[1742035506027,0.28652583,597.48,596.53,8.744]
[1742035506230,0.28652583,597.5,596.53,8.744]
[1742035506426,0.28652583,597.49,596.53,8.744]
[1742035506832,0.28652583,597.48,596.53,8.744]
[1742035507027,0.28652583,597.5,596.53,8.744]
[1742035507232,0.28652583,597.49,596.53,8.744]
[1742035507433,0.28652583,597.5,596.53,8.744]
[1742035507625,0.28652583,597.49,596.53,8.744]
[1742035507828,0.28652583,597.5,596.53,8.744]
[1742035508030,0.28652583,597.48,596.53,8.744]
[1742035508335,0.28652583,597.47,596.53,8.744]
[1742035508838,0.28652583,597.46,596.53,8.744]
[1742035509035,0.28652583,597.49,596.53,8.744]
[1742035509336,0.28652583,597.48,596.53,8.744]
[1742035509539,0.28652583,597.49,596.53,8.744]
[1742035509838,0.28652583,597.48,596.53,8.744]
[1742035510033,0.28652583,597.49,596.53,8.744]
[1742035510236,0.28652583,597.48,596.53,8.744]
[1742035510432,0.28652583,597.49,596.53,8.744]
[1742035510636,0.28657419,597.48,596.53,8.744]
[1742035510936,0.33472803,597.5,596.53,8.744]
[1742035510937,0.28657419,597.47,596.53,8.744]
[1742035511137,0.28657419,597.49,596.53,8.744]
[1742035511332,0.28657419,597.48,596.53,8.744]
[1742035511730,0.28657419,597.47,596.53,8.744]
[1742035511932,0.28657419,597.46,596.53,8.744]
[1742035512234,0.28657419,597.45,596.53,8.744]
[1742035512742,0.28657419,597.44,596.53,8.744]
[1742035512938,0.28657419,597.49,596.53,8.744]
[1742035515939,0.33472803,597.5,596.53,8.744]
[1742035516134,0.28651849,597.48,596.53,8.744]
[1742035516339,0.28651849,597.47,596.53,8.744]
[1742035516534,0.28651849,597.49,596.53,8.744]
[1742035518240,0.2865533,597.47,596.53,8.744]
[1742035518432,0.2865533,597.49,596.53,8.744]
[1742035518637,0.2865533,597.48,596.53,8.744]
[1742035518834,0.2865533,597.47,596.53,8.744]
[1742035519037,0.2865533,597.49,596.53,8.744]
[1742035519237,0.2865533,597.48,596.53,8.744]
[1742035519536,0.2865533,597.47,596.53,8.744]
[1742035520041,0.2865533,597.46,596.53,8.744]
[1742035520340,0.2865533,597.45,596.53,8.744]
[1742035520539,0.2865533,597.49,596.53,8.744]
[1742035520741,0.33472803,597.5,596.53,8.744]
[1742035520742,0.2865533,597.48,596.53,8.744]
[1742035520938,0.2865533,597.49,596.53,8.744]
[1742035523438,0.33472803,597.5,596.53,8.744]
[1742035523639,0.28649743,597.49,596.53,8.744]
[1742035523845,0.62123106,597.49,596.53,8.744]
[1742035524039,0.28649743,597.48,596.53,8.744]
[1742035524239,0.33474484,597.47,596.53,8.744]
[1742035524641,0.28649743,597.46,596.53,8.744]
[1742035524849,0.33475604,597.45,596.53,8.744]
[1742035525046,0.28649743,597.44,596.53,8.744]
[1742035525246,0.33476725,597.43,596.53,8.744]
[1742035525644,0.2864925,597.42,596.53,8.744]
[1742035526247,0.33477846,597.41,596.53,8.744]
[1742035526447,0.2864925,597.4,596.53,8.744]
[1742035529253,0.33477846,597.41,596.53,8.744]
[1742035529254,0.28649399,597.39,596.53,8.744]
[1742035529447,0.33477846,597.41,596.53,8.744]
[1742035529448,0.28649399,597.4,596.53,8.744]
[1742035534454,0.33478966,597.39,596.53,8.744]
[1742035534650,0.28649399,597.38,596.53,8.744]
[1742035534856,0.33479527,597.38,596.53,8.744]
[1742035535051,0.28647001,597.37,596.53,8.744]
[1742035538753,0.28645865,597.37,596.53,8.744]
[1742035543658,0.33479527,597.38,596.53,8.744]
[1742035549353,0.28645648,597.37,596.53,8.744]
[1742035552656,0.33479527,597.38,596.53,8.744]
[1742035553257,0.28644213,597.36,596.53,8.744]
[1742035554362,0.28644213,597.35,596.53,8.744]
[1742035554661,0.28644213,597.34,596.53,8.744]
[1742035554862,0.28644213,597.37,596.53,8.744]
[1742035555162,0.28644213,597.36,596.53,8.744]
[1742035555359,0.28644213,597.37,596.53,8.744]
[1742035555664,0.33479527,597.38,596.53,8.744]
[1742035555860,0.28654393,597.37,596.53,8.744]
[1742035557661,0.33479527,597.38,596.53,8.744]
[1742035557861,0.28655673,597.37,596.53,8.744]
[1742035571571,0.33479527,597.38,596.53,8.744]
[1742035572472,0.28653957,597.37,596.53,8.744]
[1742035576270,0.33479527,597.38,596.53,8.744]
[1742035576475,0.28653716,597.37,596.53,8.744]
[1742035578184,0.28657439,597.36,596.53,8.744]
[1742035578380,0.28657439,597.37,596.53,8.744]
[1742035578585,0.28657439,597.36,596.53,8.744]
[1742035578778,0.28657439,597.37,596.53,8.744]
[1742035586391,0.33479527,597.38,596.53,8.744]
[1742035586587,0.28671757,597.37,596.53,8.744]
[1742035587694,0.33479527,597.38,596.53,8.744]
[1742035587895,0.28671734,597.37,596.53,8.744]
[1742035593392,0.28678625,597.36,596.53,8.744]
[1742035593595,0.28678625,597.37,596.53,8.744]
[1742035593792,0.28678625,597.35,596.53,8.744]
[1742035593989,0.33479527,597.38,596.53,8.744]
[1742035594294,0.28678934,597.37,596.53,8.744]
[1742035595295,0.33479527,597.38,596.53,8.744]
[1742035595596,0.28678367,597.37,596.53,8.744]
[1742035599197,0.2867473,597.36,596.53,8.744]
[1742035599397,0.2867473,597.37,596.53,8.744]
[1742035600191,0.2867473,597.36,596.53,8.744]
[1742035600392,2.55951673,598.04,596.53,8.744]
[1742035600597,0.33443697,598.02,596.53,8.744]
[1742035600797,0.2867473,598.01,596.53,8.744]
[1742035600994,0.33445375,597.99,596.53,8.744]
[1742035601189,0.2867473,597.98,596.53,8.744]
[1742035601395,0.33447053,597.96,596.53,8.744]
[1742035601589,0.2867473,597.95,596.53,8.744]
[1742035601791,0.33448731,597.93,596.53,8.744]
[1742035601991,0.2867473,597.92,596.53,8.744]
[1742035602193,0.33450409,597.9,596.53,8.744]
[1742035602391,0.2867473,597.89,596.53,8.744]
[1742035602594,0.33452088,597.87,596.53,8.744]
[1742035602798,0.2867473,597.86,596.53,8.744]
[1742035603099,0.33453766,597.84,596.53,8.744]
[1742035603293,0.2867473,597.83,596.53,8.744]
[1742035603496,0.33454886,597.82,596.53,8.744]
[1742035603696,0.2867473,597.81,596.53,8.744]
[1742035603899,0.33456005,597.8,596.53,8.744]
[1742035604200,0.2867473,597.79,596.53,8.744]
[1742035604400,0.33457124,597.78,596.53,8.744]
[1742035604700,0.2867473,597.77,596.53,8.744]
[1742035604900,0.33458244,597.76,596.53,8.744]
[1742035605100,0.2867473,597.75,596.53,8.744]
[1742035605300,0.33459363,597.74,596.53,8.744]
[1742035605499,0.2867473,597.73,596.53,8.744]
[1742035605800,0.33460483,597.72,596.53,8.744]
[1742035606000,0.2867473,597.71,596.53,8.744]
[1742035606200,0.33461602,597.7,596.53,8.744]